[Event "1st Bangalore GM-Open-A 2024"]
[Site "Bangalore"]
[Date "2024.01.21"]
[Round "5.17"]
[White "Viani Antonio Dcunha"]
[Black "Mohamed Anees M"]
[Result "1-0"]
[ECO "B40"]
[WhiteElo "2407"]
[BlackElo "2319"]
[Annotator "RC"]
[PlyCount "135"]
[EventDate "2024.01.20"]
[EventType "swiss"]
[EventCountry "IND"]
[SourceTitle "playchess.com"]
[Source "ChessBase"]
[SourceQuality "1"]
[TimeControl "5400+30"]

1. e4 {[%emt 0:00:10]} c5 {[%emt 0:00:07]} 2. Nf3 {[%emt 0:00:11]} e6 {[%emt 0:00:06]} 3. g3 {[%emt 0:01:35]} Nc6 {[%emt 0:01:15]} 4. Bg2 {[%emt 0:00:11]} d6 {[%emt 0:02:25]} 5. O-O {[%emt 0:02:58]} Nf6 {[%emt 0:00:33]} 6. Qe2 {[%emt 0:02:29]} e5 {[%emt 0:03:54]} 7. c3 {[%emt 0:02:35]} g6 {[%emt 0:03:40]} 8. d4 {[%emt 0:05:27]} cxd4 {[%emt 0:09:55]} 9. cxd4 {[%emt 0:00:06]} Bg4 {[%emt 0:00:05]} 10. dxe5 {[%emt 0:13:50]} dxe5 {[%emt 0:01:26]} 11. Nc3 {[%emt 0:20:43]} Nd4 {[%emt 0:07:10]} 12. Qd1 {[%emt 0:00:06]} Bg7 {[%emt 0:01:37]} 13. Kh1 {[%emt 0:08:17]} O-O {[%emt 0:17:32]} 14. h3 {[%emt 0:00:19]} Bxf3 {[%emt 0:00:14]} 15. Bxf3 {[%emt 0:00:03]} Qb6 {[%emt 0:02:00]} 16. Bg2 {[%emt 0:05:44]} Rfd8 {[%emt 0:00:56]} 17. Rb1 {[%emt 0:03:11]} Nb5 {[%emt 0:10:19]} 18. Qb3 {[%emt 0:01:29]} Nxc3 {[%emt 0:00:12]} 19. Qxc3 {[%emt 0:06:51]} Qb5 {[%emt 0:06:59]} 20. Be3 {[%emt 0:02:13]} Rac8 {[%emt 0:02:09]} 21. Rbd1 {[%emt 0:01:39]} Re8 {[%emt 0:13:07]} 22. Qd2 {[%emt 0:00:57]} a6 {[%emt 0:00:28]} 23. b3 {[%emt 0:01:25]} Bf8 {[%emt 0:01:31]} 24. Qb2 {[%emt 0:03:16]} Bc5 {[%emt 0:02:35]} 25. Bg5 {[%emt 0:00:54]} Qb6 {[%emt 0:01:17]} 26. Bf3 {[%emt 0:03:13]} Bd4 {[%emt 0:01:03]} 27. Qe2 {[%emt 0:00:03]} Rc6 {[%emt 0:04:17]} 28. h4 {[%emt 0:03:05]} h5 {[%emt 0:00:07]} 29. Kg2 {[%emt 0:00:08]} Rec8 {[%emt 0:00:35]} 30. Rd2 {[%emt 0:00:25]} Nh7 {[%emt 0:00:52]} 31. Bh6 {[%emt 0:00:24]} Rc3 {[%emt 0:02:53]} 32. Rfd1 {[%emt 0:00:58]} Nf8 {[%emt 0:01:12]} 33. Rd3 {[%emt 0:04:51]} Rxd3 {[%emt 0:00:22]} 34. Rxd3 {[%emt 0:00:10]} Ne6 {[%emt 0:00:07]} 35. Bxh5 {[%emt 0:03:37]} gxh5 {[%emt 0:02:04]} 36. Qxh5 {[%emt 0:00:02]} Rc2 {[%emt 0:00:23]} 37. Qg4+ {[%emt 0:01:42]} Kh7 {[%emt 0:00:20]} 38. Bd2 {[%emt 0:00:53]} Nc5 {[%emt 0:01:35]} 39. Rf3 {[%emt 0:01:27]} Qg6 {[%emt 0:00:29]} 40. Bg5 {[%emt 0:00:02]} f6 {[%emt 0:01:36]} 41. b4 {[%emt 0:01:12]} fxg5 {[%emt 0:00:54]} 42. bxc5 {[%emt 0:00:11]} gxh4 {[%emt 0:00:34]} 43. Qxh4+ {[%emt 0:00:08]} Kg8 {[%emt 0:00:05]} 44. Qd8+ {[%emt 0:00:31]} Kh7 {[%emt 0:00:04]} 45. Qe7+ {[%emt 0:00:34]} Qg7 {[%emt 0:00:03]} 46. Qh4+ {[%emt 0:01:32]} Kg8 {[%emt 0:00:03]} 47. Rf5 {[%emt 0:01:19]} Rxf2+ {[%emt 0:02:13]} 48. Rxf2 {[%emt 0:00:02]} Bxf2 {[%emt 0:00:05]} 49. Qd8+ {[%emt 0:00:10]} Kh7 {[%emt 0:00:01]} 50. Kxf2 {[%emt 0:00:29]} Qf7+ {[%emt 0:00:12]} 51. Ke3 {[%emt 0:00:13]} Qxa2 {[%emt 0:00:26]} 52. Qe7+ {[%emt 0:00:42]} Kg6 {[%emt 0:00:16]} 53. Qd6+ {[%emt 0:00:26]} Kh7 {[%emt 0:00:12]} 54. Qd7+ {[%emt 0:00:27]} Kh6 {[%emt 0:00:19]} 55. Qd6+ {[%emt 0:00:22]} Kh7 {[%emt 0:00:04]} 56. Qxe5 {[%emt 0:00:10]} Qa3+ {[%emt 0:01:15]} 57. Kf4 {[%emt 0:00:10]} Qc1+ {[%emt 0:01:07]} 58. Kf5 {[%emt 0:00:08]} Qf1+ {[%emt 0:00:41]} 59. Ke6 {[%emt 0:00:45]} Qb5 {[%emt 0:01:04]} 60. Kf6 {[%emt 0:02:09]} Qc6+ {[%emt 0:00:45]} 61. Qe6 {[%emt 0:00:22]} Qc7 {[%emt 0:00:25]} 62. Qf7+ {[%emt 0:00:27]} Qxf7+ {[%emt 0:00:14]} 63. Kxf7 {[%emt 0:00:03]} a5 {[%emt 0:00:05]} 64. e5 {[%emt 0:00:05]} a4 {[%emt 0:00:04]} 65. e6 {[%emt 0:00:04]} a3 {[%emt 0:00:03]} 66. e7 {[%emt 0:00:06]} a2 {[%emt 0:00:04]} 67. e8=Q {[%emt 0:00:06]} a1=Q {[%emt 0:00:04]} 68. Qe4+ {[%emt 0:00:12]} 1-0

[Event "1st Bangalore GM-Open-A 2024"]
[Site "Bangalore"]
[Date "2024.01.21"]
[Round "5.18"]
[White "Nayak Rajesh"]
[Black "Panda Sambit"]
[Result "0-1"]
[ECO "B13"]
[WhiteElo "2170"]
[BlackElo "2404"]
[Annotator "RC"]
[PlyCount "74"]
[EventDate "2024.01.20"]
[EventType "swiss"]
[EventCountry "IND"]
[SourceTitle "playchess.com"]
[Source "ChessBase"]
[SourceQuality "1"]
[TimeControl "5400+30"]

1. e4 {[%emt 0:00:12]} c6 {[%emt 0:09:47]} 2. d4 {[%emt 0:00:14]} d5 {[%emt 0:00:14]} 3. exd5 {[%emt 0:00:19]} cxd5 {[%emt 0:00:58]} 4. Nf3 {[%emt 0:00:15]} Nc6 {[%emt 0:00:37]} 5. Bb5 {[%emt 0:00:43]} e6 {[%emt 0:03:30]} 6. Ne5 {[%emt 0:00:56]} Bd7 {[%emt 0:00:02]} 7. Nxd7 {[%emt 0:00:13]} Qxd7 {[%emt 0:00:01]} 8. c3 {[%emt 0:00:39]} Bd6 {[%emt 0:00:01]} 9. O-O {[%emt 0:00:44]} Nf6 {[%emt 0:00:02]} 10. Nd2 {[%emt 0:00:37]} O-O {[%emt 0:13:53]} 11. Re1 {[%emt 0:00:58]} Qc7 {[%emt 0:03:59]} 12. g3 {[%emt 0:10:20]} h6 {[%emt 0:20:09]} 13. Bd3 {[%emt 0:02:01]} Rae8 {[%emt 0:06:12]} 14. Nf3 {[%emt 0:01:27]} Nd7 {[%emt 0:00:11]} 15. Nh4 {[%emt 0:11:45]} f5 {[%emt 0:15:33]} 16. Ng6 {[%emt 0:04:44]} Rf7 {[%emt 0:05:51]} 17. Nf4 {[%emt 0:06:36]} Bxf4 {[%emt 0:03:01]} 18. Bxf4 {[%emt 0:00:09]} Qb6 {[%emt 0:01:15]} 19. Qb3 {[%emt 0:00:37]} g5 {[%emt 0:02:38]} 20. Bd2 {[%emt 0:00:51]} Qc7 {[%emt 0:02:18]} 21. Rad1 {[%emt 0:03:08]} Nf6 {[%emt 0:00:21]} 22. f3 {[%emt 0:00:59]} Rg7 {[%emt 0:01:19]} 23. Re2 {[%emt 0:06:19]} h5 {[%emt 0:01:57]} 24. Rde1 {[%emt 0:00:19]} Qf7 {[%emt 0:00:12]} 25. h3 {[%emt 0:03:57]} g4 {[%emt 0:04:02]} 26. fxg4 {[%emt 0:03:21]} hxg4 {[%emt 0:00:06]} 27. h4 {[%emt 0:00:03]} Nh5 {[%emt 0:01:52]} 28. Kh2 {[%emt 0:01:34]} Qc7 {[%emt 0:01:59]} 29. Re3 {[%emt 0:00:52]} Ree7 {[%emt 0:01:14]} 30. Rf1 {[%emt 0:02:15]} Ref7 {[%emt 0:00:29]} 31. Kg2 {[%emt 0:01:22]} f4 {[%emt 0:00:44]} 32. gxf4 {[%emt 0:03:12]} Nxf4+ {[%emt 0:00:02]} 33. Kg1 {[%emt 0:00:32]} Nh3+ {[%emt 0:00:10]} 34. Kg2 {[%emt 0:00:08]} Rxf1 {[%emt 0:00:53]} 35. Kxf1 {[%emt 0:03:17]} Qh2 {[%emt 0:00:47]} 36. Ke1 {[%emt 0:00:20]} Qg1+ {[%emt 0:00:14]} 37. Ke2 {[%emt 0:00:06]} Nf4# {[%emt 0:00:03]} 0-1

[Event "1st Bangalore GM-Open-A 2024"]
[Site "Bangalore"]
[Date "2024.01.21"]
[Round "5.19"]
[White "Mukund Hemant Agarwal"]
[Black "Thilakarathne, G M H"]
[Result "1/2-1/2"]
[ECO "B22"]
[WhiteElo "1852"]
[BlackElo "2391"]
[Annotator "RC"]
[PlyCount "79"]
[EventDate "2024.01.20"]
[EventType "swiss"]
[EventCountry "IND"]
[SourceTitle "playchess.com"]
[Source "ChessBase"]
[SourceQuality "1"]
[TimeControl "5400+30"]

1. e4 {[%emt 0:00:01]} c5 {[%emt 0:00:04]} 2. Nf3 {[%emt 0:00:09]} e6 {[%emt 0:00:06]} 3. c3 {[%emt 0:00:07]} Nf6 {[%emt 0:00:06]} 4. e5 {[%emt 0:00:03]} Nd5 {[%emt 0:00:06]} 5. d4 {[%emt 0:00:03]} cxd4 {[%emt 0:00:06]} 6. cxd4 {[%emt 0:00:10]} d6 {[%emt 0:00:06]} 7. Bc4 {[%emt 0:00:18]} Be7 {[%emt 0:00:07]} 8. O-O {[%emt 0:02:01]} O-O {[%emt 0:00:24]} 9. Qe2 {[%emt 0:00:24]} Nc6 {[%emt 0:01:05]} 10. Rd1 {[%emt 0:00:45]} Na5 {[%emt 0:03:36]} 11. Bd3 {[%emt 0:02:23]} Nb4 {[%emt 0:04:52]} 12. Qe4 {[%emt 0:11:44]} Nxd3 {[%emt 0:09:52]} 13. Rxd3 {[%emt 0:00:02]} d5 {[%emt 0:16:28]} 14. Qg4 {[%emt 0:05:44]} f5 {[%emt 0:01:12]} 15. Qg3 {[%emt 0:06:01]} Bd7 {[%emt 0:16:09]} 16. Nc3 {[%emt 0:01:55]} Qe8 {[%emt 0:04:15]} 17. h4 {[%emt 0:10:59]} Rc8 {[%emt 0:04:37]} 18. Bg5 {[%emt 0:04:06]} b5 {[%emt 0:12:51]} 19. Ne2 {[%emt 0:01:43]} Rc2 {[%emt 0:07:01]} 20. Rd2 {[%emt 0:01:17]} Rc6 {[%emt 0:00:44]} 21. Nf4 {[%emt 0:02:09]} Bxg5 {[%emt 0:06:31]} 22. Qxg5 {[%emt 0:02:17]} h6 {[%emt 0:02:51]} 23. Qg3 {[%emt 0:00:48]} Qf7 {[%emt 0:00:13]} 24. Ne1 {[%emt 0:04:27]} Rfc8 {[%emt 0:02:59]} 25. Ned3 {[%emt 0:00:59]} Nc4 {[%emt 0:00:34]} 26. Re2 {[%emt 0:00:25]} a5 {[%emt 0:01:32]} 27. Nc5 {[%emt 0:01:47]} Be8 {[%emt 0:03:32]} 28. Kh2 {[%emt 0:06:09]} Qe7 {[%emt 0:01:23]} 29. Kg1 {[%emt 0:05:09]} Bf7 {[%emt 0:00:14]} 30. Nfd3 {[%emt 0:08:32]} Kh7 {[%emt 0:00:28]} 31. f3 {[%emt 0:01:23]} Rh8 {[%emt 0:00:30]} 32. Kf2 {[%emt 0:00:46]} g6 {[%emt 0:00:41]} 33. Rc1 {[%emt 0:01:58]} Rhc8 {[%emt 0:00:27]} 34. Qf4 {[%emt 0:02:03]} Kg7 {[%emt 0:00:42]} 35. Rh1 {[%emt 0:01:17]} Rf8 {[%emt 0:00:23]} 36. Ke1 {[%emt 0:02:53]} b4 {[%emt 0:00:19]} 37. g4 {[%emt 0:09:54]} Be8 {[%emt 0:00:06]} 38. Qg3 {[%emt 0:01:35]} Kh7 {[%emt 0:00:39]} 39. b3 {[%emt 0:00:44]} Na3 {[%emt 0:00:14]} 40. g5 {[%emt 0:01:59]} 1/2-1/2

[Event "1st Bangalore GM-Open-A 2024"]
[Site "Bangalore"]
[Date "2024.01.21"]
[Round "5.20"]
[White "Omidi, Arya"]
[Black "Ghosh, Diptayan"]
[Result "1/2-1/2"]
[ECO "C41"]
[WhiteElo "2301"]
[BlackElo "2568"]
[Annotator "TA"]
[PlyCount "50"]
[EventDate "2024.01.20"]
[EventType "swiss"]
[EventCountry "IND"]
[SourceTitle "playchess.com"]
[Source "ChessBase"]
[SourceQuality "1"]
[TimeControl "5400+30"]

{[%evp 15,50,18,39,35,48,35,45,42,26,31,33,29,21,18,18,0,51,32,43,36,48,45,49,25,25,25,30,26,18,0,21,0,19,0,25,0,14]} 1. e4 {[%emt 0:00:03]} e5 {[%emt 0:00:23]} 2. Nf3 {[%emt 0:00:05]} d6 {[%emt 0:00:06]} 3. d4 {[%emt 0:00:41]} exd4 {[%emt 0:00:07]} 4. Qxd4 {[%emt 0:03:40]} Nf6 {[%emt 0:02:23]} 5. Nc3 {[%emt 0:05:56]} Be7 {[%emt 0:01:35]} 6. Bf4 {[%emt 0:02:49]} O-O {[%emt 0:04:36]} 7. O-O-O {[%emt 0:00:17]} Nc6 {[%emt 0:00:20]} 8. Qd2 {[%emt 0:01:02]} a6 $1 {[%emt 0:01:05] 8...a6 scores better than 8...Be6.} 9. Bd3 {[%emt 0:11:17] C41: Philidor Defence.} Nb4 {[%emt 0:08:17]} 10. Rhe1 {[%emt 0:00:54]} Be6 {[%emt 0:04:38] [#]} 11. a3 $146 {[%emt 0:02:54] White is slightly better.} ({Predecessor:} 11. Nd4 d5 12. a3 Nxd3+ 13. Qxd3 dxe4 14. Nxe4 Bd5 15. Nxf6+ Bxf6 16. Nf5 Be6 17. Qg3 Bxb2+ 18. Kxb2 Qf6+ 19. Be5 Qxf5 20. Qxg7# {1-0 Salerno,C (2129)-Haugaard,T (1707) Politiken Cup 37th 2015 (1)}) 11... Nxd3+ {[%emt 0:04:01]} 12. Qxd3 {[%emt 0:00:12]} Nd7 {[%emt 0:03:46]} 13. Nd5 {[%emt 0:02:58]} Bf6 {[%emt 0:04:33]} 14. Nxf6+ {[%emt 0:04:23]} Qxf6 {[%emt 0:01:11]} 15. Qe3 {[%emt 0:05:28]} (15. Bg3 {seems wilder.} Bg4 16. h3 Nc5 17. Qe3) 15... Qg6 {[%emt 0:09:06]} (15... Bg4 $11) 16. Bg3 {[%emt 0:01:44]} Rfe8 {[%emt 0:03:43]} 17. Nd4 {[%emt 0:05:24]} Qh5 {[%emt 0:08:15]} 18. f3 {[%emt 0:01:43]} Qa5 {[%emt 0:07:42]} 19. Qd2 {[%emt 0:06:02]} Qxd2+ {[%emt 0:02:07]} 20. Rxd2 {[%emt 0:00:34]} f6 {[%emt 0:00:34]} 21. Kb1 {[%emt 0:00:29]} Kf7 {[%emt 0:00:12]} 22. Kc1 {[%emt 0:00:05]} Kg8 {[%emt 0:00:06]} 23. Kb1 {[%emt 0:00:05]} Kf7 {[%emt 0:00:04]} 24. Kc1 {[%emt 0:00:05]} Kg8 {[%emt 0:00:08]} 25. Kb1 {[%emt 0:00:14]} Kf7 {[%emt 0:00:49] Weighted Error Value: White=0.11 (very precise) /Black=0.07 (flawless)} 1/2-1/2

[Event "1st Bangalore GM-Open-A 2024"]
[Site "Bangalore"]
[Date "2024.01.21"]
[Round "5.21"]
[White "Apoorv Kamble"]
[Black "Sankalp Gupta"]
[Result "0-1"]
[ECO "B68"]
[WhiteElo "2308"]
[BlackElo "2535"]
[Annotator "TA"]
[PlyCount "68"]
[EventDate "2024.01.20"]
[EventType "swiss"]
[EventCountry "IND"]
[SourceTitle "playchess.com"]
[Source "ChessBase"]
[SourceQuality "1"]
[TimeControl "5400+30"]

{[%evp 26,68,22,18,45,0,51,-40,-50,-95,-95,-61,0,-178,-188,-166,-158,-302,-293,-439,-433,-1394,-1389,-1275,-718,-5143,-5143,-2220,-543,-1934,-1737,-1158,-1136,-1128,-1113,-1096,-1096,-972,-1013,-29966,-29966,-5289,-1360,-29981,-29982]} 1. e4 {[%emt 0:00:04]} c5 {[%emt 0:00:12]} 2. Nf3 {[%emt 0:00:08]} Nc6 {[%emt 0:00:06]} 3. d4 {[%emt 0:00:04]} cxd4 {[%emt 0:00:04]} 4. Nxd4 {[%emt 0:00:05]} Nf6 {[%emt 0:00:06]} 5. Nc3 {[%emt 0:00:04]} d6 {[%emt 0:00:09]} 6. Bg5 {[%emt 0:00:10]} e6 {[%emt 0:00:05]} 7. Qd2 {[%emt 0:00:05]} a6 {[%emt 0:00:16]} 8. O-O-O {[%emt 0:00:28]} Bd7 {[%emt 0:00:09]} 9. f4 {[%emt 0:07:07]} Be7 {[%emt 0:00:32]} 10. Nf3 {[%emt 0:03:46]} b5 {[%emt 0:00:40]} 11. e5 {[%emt 0:09:55]} b4 {[%emt 0:01:45]} 12. exf6 {[%emt 0:00:06]} bxc3 {[%emt 0:00:07]} 13. Qxc3 {[%emt 0:00:14]} gxf6 {[%emt 0:00:05]} 14. Bh4 {[%emt 0:00:37]} Rg8 {[%emt 0:00:42]} 15. Bd3 {[%emt 0:10:30]} h5 {[%emt 0:07:15] [#]} ({Black should try} 15... Qb6 $11) 16. f5 {[%emt 0:10:52]} e5 $15 {[%emt 0:07:33] Black is slightly better.} (16... Rxg2 $2 17. fxe6 Bxe6 18. Qxc6+ $18) 17. Be4 {[%emt 0:00:58]} Rc8 {[%emt 0:00:43] ...Nd4 is the strong threat.} 18. Qe3 {[%emt 0:02:28] Repels Nd4} Nb4 {[%emt 0:13:16]} (18... Rxg2 $2 19. Rhg1 Rg4 20. h3 Rxh4 21. Nxh4 $18) ({Black should play} 18... Qc7 $15 19. c3 Nb4) 19. a3 $2 {[%emt 0:06:29] White is on the road to losing.} (19. Be1 $1 $11 d5 20. Bxb4 dxe4 21. Bxe7 Kxe7 22. Nh4 (22. Qxe4 Rxg2 23. c3 Rg4 $15 {[%mdl 64] Deflection})) 19... d5 $1 $19 {[%emt 0:06:35]} 20. axb4 {[%emt 0:05:26]} dxe4 {[%emt 0:00:12]} 21. Qxe4 {[%emt 0:02:50]} (21. Nd2 $17) 21... Rg4 {[%emt 0:07:03][%mdl 64] Skewer} (21... Rxg2 22. c3 Qb6 23. Rxd7 (23. Qd3 $2 Bb5 $19) 23... Kxd7 24. Nxe5+ fxe5 25. Rd1+ Ke8 26. Qxg2 Qh6+ 27. Kb1 Bxh4 28. Qg8+ Qf8 29. Qg2 $15) 22. Qe2 {[%emt 0:08:21]} (22. Qb7 $142) 22... Rxb4 {[%emt 0:13:26] And now ...Qa5 would win.} 23. Nxe5 {[%emt 0:07:20] [#]} (23. Qd3 $142 Rc7 24. Nxe5 fxe5 25. Bxe7 Qxe7 26. Rhe1) 23... Qa5 $1 {[%emt 0:01:29]} (23... Rxh4 $2 24. Rxd7 (24. Nxd7 Qa5 $18) 24... Qxd7 25. Nxd7 Kxd7 26. Re1 $18) ({Inferior is} 23... fxe5 24. Qxe5 f6 25. Bxf6 $11) 24. Nd3 {[%emt 0:13:00]} Rbc4 {[%emt 0:17:17][%cal Bb4c4,Bc4a4,Ba4a1][%mdl 32] ( -> ...Qa1+)} (24... Rxh4 $2 {is the wrong capture.} 25. Rhe1 Qd8 26. g3 $19) 25. Kb1 {[%emt 0:06:17] Prevents Qa1+} Ra4 {[%emt 0:02:23][%csl Ga5][%cal Ra4a1]} (25... Rxh4 $2 26. Rhe1 Qd8 27. Ne5 $18) 26. c3 {[%emt 0:00:06]} Ra1+ {[%emt 0:00:42]} ({Not} 26... Rxh4 27. Rhe1 Qd8 28. g3 $17) 27. Kc2 {[%emt 0:00:05] [#]} Rxc3+ $3 {[%emt 0:00:54][%mdl 512]} 28. bxc3 {[%emt 0:01:03]} Qa4+ {[%emt 0:00:14]} 29. Kd2 {[%emt 0:00:23]} Ra2+ {[%emt 0:00:02]} 30. Ke3 {[%emt 0:00:10]} Rxe2+ {[%emt 0:00:07]} 31. Kxe2 {[%emt 0:00:03]} Qxh4 {[%emt 0:00:07]} 32. Rb1 {[%emt 0:00:47]} Qe4+ {[%emt 0:00:29][%mdl 64] Deflection, Double Attack} 33. Kf2 {[%emt 0:00:27]} Bb5 {[%emt 0:00:21]} (33... Qxd3 $142 34. Rb8+ Bc8 {[%mdl 64] Clearance} 35. Rxc8+ Kd7) 34. c4 {[%emt 0:00:18]} Qxd3 {[%emt 0:00:12] A fantastic game!   Weighted Error Value: White=1.44/Black=0.75} 0-1

[Event "1st Bangalore GM-Open-A 2024"]
[Site "Bangalore"]
[Date "2024.01.21"]
[Round "5.22"]
[White "Srihari L"]
[Black "Fawzy, Adham"]
[Result "0-1"]
[ECO "C55"]
[WhiteElo "2288"]
[BlackElo "2522"]
[Annotator "TA"]
[PlyCount "98"]
[EventDate "2024.01.20"]
[EventType "swiss"]
[EventCountry "IND"]
[SourceTitle "playchess.com"]
[Source "ChessBase"]
[SourceQuality "1"]
[TimeControl "5400+30"]

{[%evp 10,98,27,29,29,16,30,22,35,35,33,39,54,9,87,69,107,54,50,64,54,67,75,68,47,44,60,47,138,91,79,0,28,0,0,-87,0,-1,-34,-81,-78,-61,-10,-102,-77,-116,-109,-174,-164,-177,-169,-255,-109,-96,0,-488,-293,-283,-291,-425,-387,-387,-387,-683,-676,-676,-657,-636,-630,-626,-586,-29967,-29968,-29968,-29967,-29953,-12841,-12638,-6187,-1445,0,-849,-830,-29993,-29994,-29996,-29996,-29996,-29997,-29997,-29998]} 1. e4 {[%emt 0:00:01]} e5 {[%emt 0:01:26]} 2. Nf3 {[%emt 0:00:12]} Nc6 {[%emt 0:00:21]} 3. Bc4 {[%emt 0:00:05]} Nf6 {[%emt 0:00:23]} 4. d3 {[%emt 0:00:05]} h6 {[%emt 0:00:19]} 5. O-O {[%emt 0:03:56]} d6 {[%emt 0:04:09]} 6. a4 {[%emt 0:03:13]} g5 {[%emt 0:04:39]} 7. a5 {[%emt 0:02:16]} Bg7 {[%emt 0:02:04]} 8. Re1 {[%emt 0:09:51]} g4 {[%emt 0:03:42] The position is equal.} 9. Nfd2 {[%emt 0:03:19]} h5 {[%emt 0:01:20]} 10. Nf1 {[%emt 0:02:32]} h4 {[%emt 0:04:16]} 11. c3 {[%emt 0:04:37]} Nh5 {[%emt 0:15:54]} (11... a6 $11) 12. a6 {[%emt 0:05:07] And now axb7 would win.} bxa6 {[%emt 0:13:46]} 13. Bd5 {[%emt 0:03:59]} ({White should try} 13. Bxa6 $16 Rb8 14. Bxc8 Qxc8 15. Na3) 13... Qd7 $14 {[%emt 0:02:46]} 14. Ne3 {[%emt 0:05:50]} (14. Qa4 $5 Bb7 $8 15. Ne3 $14) 14... Nf4 {[%emt 0:09:01]} 15. Nf5 {[%emt 0:04:00]} Nxd5 {[%emt 0:01:27]} 16. Nxg7+ {[%emt 0:00:31]} Kf8 {[%emt 0:00:47] Strongly threatening ...Nde7.} 17. exd5 {[%emt 0:04:53]} Ne7 {[%emt 0:00:59]} 18. d4 {[%emt 0:01:35][%cal Od4e5] dxe5! would be deadly.} (18. Ne6+ $5 fxe6 19. f4 $11) 18... Ng6 {[%emt 0:11:17] [#]} (18... Kxg7 $14 19. dxe5 dxe5) 19. Ne6+ $1 {[%emt 0:03:33][%mdl 512]} fxe6 $16 {[%emt 0:00:10]} 20. Qxg4 {[%emt 0:00:14]} (20. dxe5 $16 h3 21. exd6 (21. Qxg4 Nxe5 22. dxe6 Qxe6 $11) 21... hxg2 22. Qxg4 (22. dxe6 Qxd6 23. Qxd6+ cxd6 $14) 22... Qxd6 23. Qf3+ (23. Qxg6 $2 Qxh2#) (23. Qxg2 Nh4 $15 {[%mdl 64] Deflection}) 23... Kg7 24. Qxg2) 20... Qf7 $11 {[%emt 0:01:47]} 21. dxe6 {[%emt 0:03:46]} (21. dxe5 {simplifies} Nxe5 22. Qe2 exd5 23. f4) 21... Bxe6 {[%emt 0:00:30]} 22. Qg5 {[%emt 0:03:37]} (22. Qd1 $11 {remains equal.}) 22... Nf4 {[%emt 0:03:35]} (22... h3 $17 {aiming for ...Nh4.} 23. Ra5 Re8 24. dxe5 Nxe5 25. Rexe5 (25. Rxa6 $2 Bc4 $19) 25... dxe5) 23. Bxf4 {[%emt 0:01:28]} (23. Rxa6 $2 Rh5 $19) 23... Rh5 {[%emt 0:00:56]} 24. dxe5 {[%emt 0:03:21]} (24. Qxh5 $15 Qxh5 25. dxe5) 24... Rxg5 $17 {[%emt 0:00:06]} 25. Bxg5 {[%emt 0:00:07]} Qh5 {[%emt 0:01:07]} ({Better is} 25... h3 $1 $15 26. exd6 (26. Rxa6 $2 Qg6 $19) 26... cxd6) 26. f4 {[%emt 0:13:15]} (26. Be3 $11) 26... Rb8 {[%emt 0:05:01]} 27. b4 {[%emt 0:01:05]} (27. Rxa6 Rxb2 28. h3 Bd5) 27... Qg4 $1 $40 {[%emt 0:01:59][%mdl 128] Black attacks with force.} 28. h3 {[%emt 0:04:08]} (28. Rxa6 $2 h3 29. Kf2 Qxg2+ 30. Ke3 Qxh2 $19) (28. Nd2 $17 Bd5 29. Ne4 Bxe4 30. Rxe4) 28... Qg3 $1 $19 {[%emt 0:00:11][%csl LRe1,LRh3]} 29. Re2 {[%emt 0:00:07]} Bxh3 {[%emt 0:03:40] White must now prevent ...Bg4.} 30. exd6 {[%emt 0:00:11]} (30. Rxa6 $2 Qd3 31. Raa2 Qxb1+ $19) (30. Nd2 {keeps fighting.} Qxc3 31. Rae1 Qd4+ 32. Rf2) 30... Bg4 {[%emt 0:03:21]} (30... Re8 $19 {is more deadly.} 31. Be7+ Kf7) 31. Bh6+ $17 {[%emt 0:02:16]} (31. dxc7 $2 Re8 32. Rxe8+ (32. Bh6+ $2 Kf7 $19) 32... Kxe8 $19) 31... Kg8 {[%emt 0:01:39] The board is on fire.} (31... Kf7 $1 $17 32. Re7+ (32. dxc7 $2 Rh8 $19) 32... Kg6 33. dxc7 h3) 32. Ra5 $2 {[%emt 0:02:00][%mdl 8192] Black converts the advantage convincingly.} Kh7 {[%emt 0:00:49]} (32... Bxe2 $2 33. Rg5+ Kh7 34. Rxg3 hxg3 35. Bg5 (35. dxc7 $2 Re8 $19) 35... cxd6 36. Bh4) 33. dxc7 {[%emt 0:01:21]} Rg8 {[%emt 0:00:53]} (33... Bxe2 34. cxb8=Q (34. cxb8=B h3 35. Rg5 Bg4 36. Rg7+ Kxh6 37. Rxg4 Qxg4 38. Kf2 h2 39. Be5 h1=Q) 34... Qe1+ 35. Kh2 Qg3+ 36. Kh1 Qe1+ 37. Kh2 Qg3+ 38. Kh1 Qe1+ 39. Kh2 $11) 34. Rg5 {[%emt 0:05:28] [#]} (34. c8=Q $142 Bxc8 35. Rh5) 34... Rxg5 $1 $19 {[%emt 0:00:29]} 35. Bxg5 {[%emt 0:00:10][%cal Ob1d2] [#]} h3 $1 {[%emt 0:00:56]} 36. Rd2 {[%emt 0:00:52]} (36. Re7+ {leads to mate.} Kg6 37. f5+ Kxg5 38. Rg7+ Kf4 39. Rxg4+ Qxg4 40. Kf2 Qxg2+ 41. Ke1 h2 42. Nd2 h1=Q+) (36. c8=Q Bxc8 37. Nd2) 36... Qe1+ {[%emt 0:00:31]} 37. Kh2 {[%emt 0:00:06]} Qxb1 {[%emt 0:00:15]} 38. gxh3 {[%emt 0:00:16]} Bf5 {[%emt 0:01:47]} 39. Bf6 {[%emt 0:02:33]} Qf1 {[%emt 0:01:00][%csl LRf4,LRh3]} 40. Be5 {[%emt 0:00:28]} Qxh3+ {[%emt 0:00:29]} 41. Kg1 {[%emt 0:00:01]} Qe3+ {[%emt 0:00:01]} 42. Rf2 {[%emt 0:00:09]} Qe1+ {[%emt 0:00:33]} 43. Kg2 {[%emt 0:00:10]} Be4+ {[%emt 0:00:22]} 44. Kh3 {[%emt 0:00:28]} Bf5+ {[%emt 0:00:54]} ({Less strong is} 44... Qxf2 45. c8=Q (45. c8=R $2 Bf5#) 45... Qf3+ 46. Kh4 Qh1+ 47. Kg5 Qh6+ 48. Kg4 Qg6+ 49. Kh4 Qh6+ 50. Kg3 (50. Kg4 Qg6+ 51. Kh4 Qh6+ 52. Kg3 Qg6+ 53. Kh4 $16) 50... Qg6+ 51. Qg4 $16) 45. Kg2 {[%emt 0:00:14]} Kg6 {[%emt 0:00:29] ( -> ...Be4+)} 46. Bd4 {[%emt 0:00:14]} Be4+ {[%emt 0:00:32] Black mates.} 47. Kh3 {[%emt 0:00:43]} Qh1+ {[%emt 0:00:01]} 48. Kg3 {[%emt 0:02:09]} Qg1+ {[%emt 0:00:02]} 49. Kh4 {[%emt 0:00:13]} Bf5 {[%emt 0:00:15] A cool game by Fawzy.   Weighted Error Value: White=0.68/Black=0.42} 0-1